[Event "*** SCC Grand Prix: Titled Tuesday Blitz"]
[Site "Chess.com"]
[Date "2020.06.23"]
[Round "6"]
[White "Schandenfreude"]
[Black "alexrustemov"]
[Result "1/2-1/2"]
[WhiteElo "2528"]
[BlackElo "2730"]
[TimeControl "180+1"]
[EndTime "11:09:01 PDT"]
[Termination "Game drawn by 50-move rule"]

1. Nf3 {[%clk 0:02:59.3]} 1... d5 {[%clk 0:02:59]} 2. e3 {[%clk 0:02:58]} 2...
Nf6 {[%clk 0:02:58.2]} 3. c4 {[%clk 0:02:57.4]} 3... c6 {[%clk 0:02:57.5]} 4.
Nc3 {[%clk 0:02:54.9]} 4... a6 {[%clk 0:02:53.5]} 5. Qc2 {[%clk 0:02:41.5]} 5...
Bg4 {[%clk 0:02:36.9]} 6. Ne5 {[%clk 0:02:27.7]} 6... Bh5 {[%clk 0:02:27.1]} 7.
d4 {[%clk 0:02:15.6]} 7... e6 {[%clk 0:02:25.9]} 8. c5 {[%clk 0:02:10.5]} 8...
Nbd7 {[%clk 0:02:24.5]} 9. f4 {[%clk 0:02:08.9]} 9... Nxe5 {[%clk 0:02:21]} 10.
fxe5 {[%clk 0:02:07.4]} 10... Nd7 {[%clk 0:02:17.4]} 11. Be2 {[%clk 0:01:53.3]}
11... Qh4+ {[%clk 0:02:05.4]} 12. g3 {[%clk 0:01:51.8]} 12... Qh3 {[%clk
0:02:02.3]} 13. Bxh5 {[%clk 0:01:48.7]} 13... Qxh5 {[%clk 0:02:03.2]} 14. O-O
{[%clk 0:01:47.1]} 14... Be7 {[%clk 0:01:43.2]} 15. Ne2 {[%clk 0:01:42.7]} 15...
Bg5 {[%clk 0:01:27.7]} 16. Nf4 {[%clk 0:01:39]} 16... Bxf4 {[%clk 0:01:26.4]}
17. exf4 {[%clk 0:01:36.7]} 17... Qf5 {[%clk 0:01:17.9]} 18. Qxf5 {[%clk
0:01:27.5]} 18... exf5 {[%clk 0:01:17.4]} 19. Bd2 {[%clk 0:01:24.3]} 19... Nf8
{[%clk 0:01:02.9]} 20. b4 {[%clk 0:01:23.6]} 20... Ne6 {[%clk 0:01:02]} 21. Be3
{[%clk 0:01:21.3]} 21... h5 {[%clk 0:00:58.1]} 22. h3 {[%clk 0:01:14.7]} 22...
Kd7 {[%clk 0:00:53.9]} 23. a4 {[%clk 0:01:13.6]} 23... Rhb8 {[%clk 0:00:45.3]}
24. a5 {[%clk 0:01:04.9]} 24... Rh8 {[%clk 0:00:35.6]} 25. Kf2 {[%clk
0:01:01.6]} 25... Rh6 {[%clk 0:00:31.3]} 26. Rh1 {[%clk 0:00:57.8]} 26... Rah8
{[%clk 0:00:30.5]} 27. Rag1 {[%clk 0:00:55.8]} 27... Nc7 {[%clk 0:00:26.5]} 28.
Bc1 {[%clk 0:00:37.3]} 28... Ke6 {[%clk 0:00:26.4]} 29. Kf3 {[%clk 0:00:33.5]}
29... Nb5 {[%clk 0:00:25.8]} 30. Bb2 {[%clk 0:00:33.2]} 30... Rg6 {[%clk
0:00:24.8]} 31. Rg2 {[%clk 0:00:32.1]} 31... Rh7 {[%clk 0:00:24.2]} 32. Rgg1
{[%clk 0:00:31.4]} 32... Nc7 {[%clk 0:00:23.7]} 33. Rg2 {[%clk 0:00:30.8]} 33...
Ke7 {[%clk 0:00:22.8]} 34. Rgg1 {[%clk 0:00:30.6]} 34... Ne6 {[%clk 0:00:23.3]}
35. Rg2 {[%clk 0:00:27.9]} 35... Rgh6 {[%clk 0:00:23.2]} 36. Rgg1 {[%clk
0:00:27.2]} 36... g5 {[%clk 0:00:22.9]} 37. h4 {[%clk 0:00:20.3]} 37... gxf4
{[%clk 0:00:17.8]} 38. gxf4 {[%clk 0:00:19.9]} 38... Rg7 {[%clk 0:00:11.3]} 39.
Rg5 {[%clk 0:00:16.6]} 39... Nxg5+ {[%clk 0:00:09.5]} 40. fxg5 {[%clk
0:00:14.6]} 40... Rh8 {[%clk 0:00:08.9]} 41. Kf4 {[%clk 0:00:14.2]} 41... Ke6
{[%clk 0:00:08.7]} 42. Re1 {[%clk 0:00:14]} 42... Rg6 {[%clk 0:00:09.2]} 43. Bc3
{[%clk 0:00:13.6]} 43... Re8 {[%clk 0:00:09.6]} 44. Bb2 {[%clk 0:00:13.6]} 44...
Ke7 {[%clk 0:00:09.7]} 45. Kxf5 {[%clk 0:00:13.2]} 45... Kf8 {[%clk 0:00:09.8]}
46. Bc3 {[%clk 0:00:13.1]} 46... Kg7 {[%clk 0:00:10.4]} 47. Rf1 {[%clk
0:00:13.1]} 47... Rge6 {[%clk 0:00:11.1]} 48. Rg1 {[%clk 0:00:12.8]} 48... R6e7
{[%clk 0:00:11.6]} 49. Rg2 {[%clk 0:00:13.1]} 49... Re6 {[%clk 0:00:11.4]} 50.
Rg1 {[%clk 0:00:13.2]} 50... Rg6 {[%clk 0:00:11.3]} 51. Rg2 {[%clk 0:00:13.4]}
51... Kh7 {[%clk 0:00:11.4]} 52. Rg3 {[%clk 0:00:11.5]} 52... Rf8 {[%clk
0:00:11.7]} 53. Rf3 {[%clk 0:00:11.4]} 53... Re8 {[%clk 0:00:11.4]} 54. Re3
{[%clk 0:00:11.2]} 54... Kg7 {[%clk 0:00:11.7]} 55. Bd2 {[%clk 0:00:10.7]} 55...
Rge6 {[%clk 0:00:10.7]} 56. Rf3 {[%clk 0:00:10.7]} 56... Rg6 {[%clk 0:00:10.3]}
57. Rf2 {[%clk 0:00:10.9]} 57... Kg8 {[%clk 0:00:10.9]} 58. Rf1 {[%clk 0:00:11]}
58... Rf8 {[%clk 0:00:11.5]} 59. Rf2 {[%clk 0:00:11.2]} 59... Kg7 {[%clk
0:00:12]} 60. Rf1 {[%clk 0:00:11.5]} 60... Re8 {[%clk 0:00:12.3]} 61. Rf2 {[%clk
0:00:11.8]} 61... Ree6 {[%clk 0:00:12.4]} 62. Bf4 {[%clk 0:00:11.7]} 62... Kg8
{[%clk 0:00:11.2]} 63. Rf1 {[%clk 0:00:11.9]} 63... Kf8 {[%clk 0:00:11.5]} 64.
Rf2 {[%clk 0:00:11.6]} 64... Ke7 {[%clk 0:00:11.4]} 65. Rf1 {[%clk 0:00:11.8]}
65... Rg8 {[%clk 0:00:10.9]} 66. Rf2 {[%clk 0:00:12.2]} 66... Rgg6 {[%clk
0:00:11]} 67. Rf1 {[%clk 0:00:12.6]} 67... Rg7 {[%clk 0:00:10.6]} 68. Rf2 {[%clk
0:00:11.1]} 68... Ke8 {[%clk 0:00:11.1]} 69. Rf1 {[%clk 0:00:11.4]} 69... Rg8
{[%clk 0:00:10.9]} 70. Rf2 {[%clk 0:00:11.8]} 70... Ke7 {[%clk 0:00:11.1]} 71.
Rf1 {[%clk 0:00:12.2]} 71... Reg6 {[%clk 0:00:10.3]} 72. Rf2 {[%clk 0:00:12.5]}
72... R6g7 {[%clk 0:00:10.5]} 73. Rf1 {[%clk 0:00:12.9]} 73... Rg6 {[%clk
0:00:10.7]} 74. Rf2 {[%clk 0:00:13.2]} 74... Re6 {[%clk 0:00:11.6]} 75. Rf1
{[%clk 0:00:13.4]} 75... Ke8 {[%clk 0:00:12.4]} 76. Rf2 {[%clk 0:00:13.8]} 76...
Rgg6 {[%clk 0:00:13.1]} 77. Rf1 {[%clk 0:00:13.7]} 77... Kf8 {[%clk 0:00:13.7]}
78. Rf2 {[%clk 0:00:14.1]} 78... Kg7 {[%clk 0:00:14.5]} 79. Rf1 {[%clk
0:00:14.3]} 79... Kg8 {[%clk 0:00:15.3]} 80. Rf2 {[%clk 0:00:14.7]} 80... Kh7
{[%clk 0:00:16]} 81. Rf1 {[%clk 0:00:14.4]} 81... Rg8 {[%clk 0:00:16.7]} 82. Rf2
{[%clk 0:00:14.8]} 82... Kg7 {[%clk 0:00:17.4]} 83. Rf1 {[%clk 0:00:15.1]} 83...
Rge8 {[%clk 0:00:18.1]} 84. Rf2 {[%clk 0:00:15.6]} 84... R6e7 {[%clk 0:00:18]}
85. Rf1 {[%clk 0:00:15.8]} 85... Re6 {[%clk 0:00:18]} 86. Rf2 {[%clk 0:00:16.1]}
86... Rf8 {[%clk 0:00:18.2]} 87. Rf1 {[%clk 0:00:16.4]} 87... Kg8 {[%clk
0:00:18]} 88. Rf2 {[%clk 0:00:16.7]} 88... Rg6 {[%clk 0:00:18.3]} 89. Rf1 {[%clk
0:00:16.8]} 89... Kg7 {[%clk 0:00:18.7]} 90. Rf2 {[%clk 0:00:17]} 90... Re8
{[%clk 0:00:19.1]} 91. Rf1 {[%clk 0:00:17.1]} 91... Re7 {[%clk 0:00:18.7]} 92.
Rf2 {[%clk 0:00:17.4]} 92... Kg8 {[%clk 0:00:18.3]} 93. Rf1 {[%clk 0:00:17.6]}
93... Rge6 {[%clk 0:00:17.9]} 94. Rf2 {[%clk 0:00:17.9]} 94... Kg7 {[%clk
0:00:17.5]} 95. Rf1 {[%clk 0:00:18.2]} 1/2-1/2

[Event "*** SCC Grand Prix: Titled Tuesday Blitz"]
[Site "Chess.com"]
[Date "2020.06.23"]
[Round "6"]
[White "petrkostenko"]
[Black "Twitch_ElhamBlitz05"]
[Result "1/2-1/2"]
[WhiteElo "2526"]
[BlackElo "2762"]
[TimeControl "180+1"]
[EndTime "11:09:58 PDT"]
[Termination "Game drawn - insufficient material"]

1. e4 {[%clk 0:02:00.9]} 1... c6 {[%clk 0:02:58]} 2. d4 {[%clk 0:01:59.9]} 2...
d5 {[%clk 0:02:58.9]} 3. exd5 {[%clk 0:02:00.2]} 3... cxd5 {[%clk 0:02:59.3]} 4.
Bd3 {[%clk 0:02:00.8]} 4... Nf6 {[%clk 0:02:59.9]} 5. c3 {[%clk 0:01:54.5]} 5...
g6 {[%clk 0:03:00.8]} 6. Bf4 {[%clk 0:01:52.5]} 6... Bg7 {[%clk 0:03:00.8]} 7.
Nf3 {[%clk 0:01:51.5]} 7... O-O {[%clk 0:03:00.2]} 8. O-O {[%clk 0:01:51.5]}
8... Nc6 {[%clk 0:03:00.3]} 9. Re1 {[%clk 0:01:51.1]} 9... Bf5 {[%clk
0:02:59.4]} 10. Bxf5 {[%clk 0:01:49.7]} 10... gxf5 {[%clk 0:03:00.3]} 11. Nbd2
{[%clk 0:01:49.2]} 11... e6 {[%clk 0:02:59.3]} 12. Nb3 {[%clk 0:01:48.7]} 12...
Ne4 {[%clk 0:02:58.5]} 13. Nc1 {[%clk 0:01:47.4]} 13... Kh8 {[%clk 0:02:57.5]}
14. Nd3 {[%clk 0:01:47.4]} 14... Rg8 {[%clk 0:02:57.2]} 15. Qe2 {[%clk
0:01:43.3]} 15... Qe7 {[%clk 0:02:53]} 16. Nfe5 {[%clk 0:01:37.1]} 16... Nxe5
{[%clk 0:02:52.1]} 17. Bxe5 {[%clk 0:01:16]} 17... Bxe5 {[%clk 0:02:49.2]} 18.
Nxe5 {[%clk 0:01:15.9]} 18... Rg7 {[%clk 0:02:49.1]} 19. f3 {[%clk 0:01:15.9]}
19... Nf6 {[%clk 0:02:47.9]} 20. Qd2 {[%clk 0:01:09.6]} 20... Nd7 {[%clk
0:02:40.1]} 21. Nd3 {[%clk 0:01:02.1]} 21... Rag8 {[%clk 0:02:39]} 22. Re2
{[%clk 0:01:01.9]} 22... Qd6 {[%clk 0:02:36]} 23. Rae1 {[%clk 0:00:59.3]} 23...
a6 {[%clk 0:02:29.7]} 24. a3 {[%clk 0:00:58.3]} 24... b6 {[%clk 0:02:08.9]} 25.
Qf4 {[%clk 0:00:57.9]} 25... Qxf4 {[%clk 0:02:08]} 26. Nxf4 {[%clk 0:00:58]}
26... Rb8 {[%clk 0:02:07.3]} 27. Kf2 {[%clk 0:00:57.1]} 27... Rgg8 {[%clk
0:02:06.7]} 28. h3 {[%clk 0:00:57.3]} 28... Rgc8 {[%clk 0:02:06.5]} 29. g4
{[%clk 0:00:56.9]} 29... fxg4 {[%clk 0:02:06.3]} 30. hxg4 {[%clk 0:00:56.6]}
30... Kg8 {[%clk 0:02:06.4]} 31. Kg3 {[%clk 0:00:56.8]} 31... b5 {[%clk
0:02:01.5]} 32. Rh1 {[%clk 0:00:57]} 32... Nf8 {[%clk 0:01:38.3]} 33. Nd3 {[%clk
0:00:55.2]} 33... a5 {[%clk 0:01:32.1]} 34. f4 {[%clk 0:00:55]} 34... Re8 {[%clk
0:01:28.6]} 35. Kf3 {[%clk 0:00:54.1]} 35... Kg7 {[%clk 0:01:28.6]} 36. Reh2
{[%clk 0:00:53.9]} 36... f6 {[%clk 0:01:26.4]} 37. Rh6 {[%clk 0:00:52.6]} 37...
Rb7 {[%clk 0:01:25]} 38. Nc5 {[%clk 0:00:47.4]} 38... Rf7 {[%clk 0:01:22.4]} 39.
Nb3 {[%clk 0:00:42.7]} 39... b4 {[%clk 0:01:14.2]} 40. cxb4 {[%clk 0:00:39.4]}
40... axb4 {[%clk 0:01:15.1]} 41. a4 {[%clk 0:00:39.9]} 41... Rc7 {[%clk
0:01:09.9]} 42. R6h2 {[%clk 0:00:34.4]} 42... Rc4 {[%clk 0:01:01.3]} 43. a5
{[%clk 0:00:34.3]} 43... e5 {[%clk 0:00:51.1]} 44. fxe5 {[%clk 0:00:30.1]} 44...
fxe5 {[%clk 0:00:52]} 45. Rh5 {[%clk 0:00:28]} 45... Rc2 {[%clk 0:00:44.7]} 46.
Rxe5 {[%clk 0:00:25.2]} 46... Rxe5 {[%clk 0:00:43.6]} 47. dxe5 {[%clk
0:00:25.4]} 47... Rxb2 {[%clk 0:00:43.9]} 48. Nd4 {[%clk 0:00:25.9]} 48... Ra2
{[%clk 0:00:43.1]} 49. e6 {[%clk 0:00:24.8]} 49... Ng6 {[%clk 0:00:18.5]} 50. g5
{[%clk 0:00:17.7]} 50... Rxa5 {[%clk 0:00:11.1]} 51. Nf5+ {[%clk 0:00:17.4]}
51... Kg8 {[%clk 0:00:11.7]} 52. e7 {[%clk 0:00:17.2]} 52... Ra8 {[%clk
0:00:10.5]} 53. Re1 {[%clk 0:00:16.3]} 53... Re8 {[%clk 0:00:10.3]} 54. Re2
{[%clk 0:00:14.8]} 54... b3 {[%clk 0:00:10.2]} 55. Rb2 {[%clk 0:00:14.4]} 55...
Nxe7 {[%clk 0:00:09.9]} 56. Nxe7+ {[%clk 0:00:13.7]} 56... Rxe7 {[%clk
0:00:10.8]} 57. Rxb3 {[%clk 0:00:14.2]} 57... Rd7 {[%clk 0:00:09.7]} 58. Rb6
{[%clk 0:00:12.3]} 58... d4 {[%clk 0:00:08.5]} 59. Ke2 {[%clk 0:00:12.4]} 59...
Kg7 {[%clk 0:00:06.3]} 60. Kd2 {[%clk 0:00:12.9]} 60... Rd5 {[%clk 0:00:06.2]}
61. Kd3 {[%clk 0:00:12.1]} 61... Rxg5 {[%clk 0:00:04.8]} 62. Kxd4 {[%clk
0:00:12.4]} 62... Rf5 {[%clk 0:00:05.4]} 63. Ke4 {[%clk 0:00:12.4]} 63... Rf8
{[%clk 0:00:05.2]} 64. Rb5 {[%clk 0:00:11.5]} 64... Kg6 {[%clk 0:00:04.9]} 65.
Rb6+ {[%clk 0:00:11.3]} 65... Kg5 {[%clk 0:00:04.7]} 66. Rb5+ {[%clk 0:00:08.5]}
66... Kg4 {[%clk 0:00:04.7]} 67. Rb7 {[%clk 0:00:07.6]} 67... Re8+ {[%clk
0:00:04.2]} 68. Kd3 {[%clk 0:00:07.2]} 68... h5 {[%clk 0:00:04.9]} 69. Rg7+
{[%clk 0:00:07.5]} 69... Kf3 {[%clk 0:00:03.7]} 70. Rf7+ {[%clk 0:00:07.3]}
70... Kg3 {[%clk 0:00:04.3]} 71. Rg7+ {[%clk 0:00:07.5]} 71... Kh2 {[%clk
0:00:04.9]} 72. Rh7 {[%clk 0:00:07.3]} 72... h4 {[%clk 0:00:05.2]} 73. Rxh4+
{[%clk 0:00:05.7]} 73... Kg3 {[%clk 0:00:05.9]} 74. Re4 {[%clk 0:00:06.2]} 74...
Ra8 {[%clk 0:00:04.7]} 75. Rc4 {[%clk 0:00:05.9]} 75... Kf3 {[%clk 0:00:04.8]}
76. Kd4 {[%clk 0:00:06]} 76... Kf4 {[%clk 0:00:04]} 77. Rc5 {[%clk 0:00:06.1]}
77... Ra1 {[%clk 0:00:03.4]} 78. Kd5 {[%clk 0:00:06.1]} 78... Kf5 {[%clk
0:00:02.7]} 79. Kd6+ {[%clk 0:00:06.2]} 79... Kf6 {[%clk 0:00:02.8]} 80. Kd5
{[%clk 0:00:06.4]} 80... Rd1+ {[%clk 0:00:02.8]} 81. Kc6 {[%clk 0:00:06.6]}
81... Ke6 {[%clk 0:00:03.7]} 82. Rc4 {[%clk 0:00:06.8]} 82... Rd6+ {[%clk
0:00:04]} 83. Kc5 {[%clk 0:00:07.1]} 83... Rd1 {[%clk 0:00:04.6]} 84. Re4+
{[%clk 0:00:06.9]} 84... Kf5 {[%clk 0:00:05.3]} 85. Rd4 {[%clk 0:00:06.8]} 85...
Ra1 {[%clk 0:00:06]} 86. Kc4 {[%clk 0:00:06.6]} 86... Ke5 {[%clk 0:00:05.8]} 87.
Rd5+ {[%clk 0:00:06.7]} 87... Ke4 {[%clk 0:00:06]} 88. Rb5 {[%clk 0:00:07.1]}
88... Rc1+ {[%clk 0:00:05.5]} 89. Kb4 {[%clk 0:00:07.3]} 89... Kd4 {[%clk
0:00:06.1]} 90. Ka5 {[%clk 0:00:07.1]} 90... Kc4 {[%clk 0:00:05.1]} 91. Kb6
{[%clk 0:00:07.1]} 91... Rh1 {[%clk 0:00:05.6]} 92. Rc5+ {[%clk 0:00:07]} 92...
Kd4 {[%clk 0:00:06.2]} 93. Rb5 {[%clk 0:00:07.3]} 93... Rh8 {[%clk 0:00:06.8]}
94. Rb4+ {[%clk 0:00:06.6]} 94... Kd5 {[%clk 0:00:06.5]} 95. Rb5+ {[%clk
0:00:06.6]} 95... Kd6 {[%clk 0:00:06.9]} 96. Ka5 {[%clk 0:00:06.8]} 96... Rh4
{[%clk 0:00:07.3]} 97. Rb6+ {[%clk 0:00:06.4]} 97... Kc5 {[%clk 0:00:06.9]} 98.
Rb5+ {[%clk 0:00:06.9]} 98... Kc6 {[%clk 0:00:07.6]} 99. Rb6+ {[%clk 0:00:07.5]}
99... Kc7 {[%clk 0:00:07.6]} 100. Rg6 {[%clk 0:00:07.8]} 100... Rd4 {[%clk
0:00:05]} 101. Kb5 {[%clk 0:00:07.9]} 101... Rd6 {[%clk 0:00:05.9]} 102. Rxd6
{[%clk 0:00:06.3]} 102... Kxd6 {[%clk 0:00:06.8]} 1/2-1/2

[Event "*** SCC Grand Prix: Titled Tuesday Blitz"]
[Site "Chess.com"]
[Date "2020.06.23"]
[Round "7"]
[White "FMJoseHerrera"]
[Black "Chess_Boxer123"]
[Result "1-0"]
[WhiteElo "2586"]
[BlackElo "2714"]
[TimeControl "180+1"]
[EndTime "11:12:35 PDT"]
[Termination "FMJoseHerrera won by resignation"]

1. Nf3 {[%clk 0:03:00.9]} 1... d5 {[%clk 0:02:58.3]} 2. g3 {[%clk 0:03:01.3]}
2... g6 {[%clk 0:02:58]} 3. Bg2 {[%clk 0:03:01.7]} 3... Bg7 {[%clk 0:02:58.6]}
4. d3 {[%clk 0:03:02]} 4... e5 {[%clk 0:02:57.3]} 5. Nc3 {[%clk 0:03:02.2]} 5...
Ne7 {[%clk 0:02:57.5]} 6. h4 {[%clk 0:03:01.8]} 6... h5 {[%clk 0:02:57.2]} 7.
Bg5 {[%clk 0:03:01.2]} 7... c6 {[%clk 0:02:55.9]} 8. Qd2 {[%clk 0:03:01.2]} 8...
f6 {[%clk 0:02:54.5]} 9. d4 {[%clk 0:02:57.5]} 9... e4 {[%clk 0:02:53.2]} 10.
Bxf6 {[%clk 0:02:52.3]} 10... Bxf6 {[%clk 0:02:50.9]} 11. Ne5 {[%clk 0:02:52.5]}
11... Qc7 {[%clk 0:02:40.1]} 12. O-O-O {[%clk 0:02:48.5]} 12... Bxe5 {[%clk
0:02:39.3]} 13. dxe5 {[%clk 0:02:49.4]} 13... Qxe5 {[%clk 0:02:40]} 14. f4
{[%clk 0:02:49.4]} 14... Qf6 {[%clk 0:02:39.4]} 15. Bxe4 {[%clk 0:02:42.4]}
15... dxe4 {[%clk 0:02:36.2]} 16. Nxe4 {[%clk 0:02:37.1]} 16... Qg7 {[%clk
0:02:21.1]} 17. Qd8+ {[%clk 0:02:18.5]} 17... Kf7 {[%clk 0:02:19.7]} 18. Ng5+
{[%clk 0:02:19.1]} 18... Kf6 {[%clk 0:02:20]} 19. Qd4+ {[%clk 0:02:15.1]} 19...
Kf5 {[%clk 0:02:19.2]} 20. Qxg7 {[%clk 0:02:13.8]} 1-0

[Event "*** SCC Grand Prix: Titled Tuesday Blitz"]
[Site "Chess.com"]
[Date "2020.06.23"]
[Round "7"]
[White "Kavyev_Ruslan"]
[Black "bascheyaro"]
[Result "0-1"]
[WhiteElo "2553"]
[BlackElo "2718"]
[TimeControl "180+1"]
[EndTime "11:13:15 PDT"]
[Termination "bascheyaro won by resignation"]

1. d4 {[%clk 0:03:00.9]} 1... d5 {[%clk 0:02:59.8]} 2. c4 {[%clk 0:03:01.2]}
2... c6 {[%clk 0:03:00]} 3. Nf3 {[%clk 0:03:01.6]} 3... Nf6 {[%clk 0:03:00]} 4.
g3 {[%clk 0:03:02.1]} 4... Bf5 {[%clk 0:03:00.2]} 5. Nc3 {[%clk 0:03:02.2]} 5...
e6 {[%clk 0:03:00.1]} 6. Nh4 {[%clk 0:03:02.9]} 6... Be4 {[%clk 0:03:00]} 7. f3
{[%clk 0:03:02.9]} 7... Bg6 {[%clk 0:03:00.2]} 8. Qb3 {[%clk 0:03:03.3]} 8...
Qc7 {[%clk 0:03:00]} 9. Bf4 {[%clk 0:03:02.7]} 9... Qb6 {[%clk 0:03:00.3]} 10.
Nxg6 {[%clk 0:03:00.7]} 10... hxg6 {[%clk 0:02:59.9]} 11. c5 {[%clk 0:03:01.3]}
11... Qxb3 {[%clk 0:02:59]} 12. axb3 {[%clk 0:03:02.2]} 12... Nbd7 {[%clk
0:02:58.3]} 13. g4 {[%clk 0:03:01.4]} 13... a6 {[%clk 0:02:54.8]} 14. b4 {[%clk
0:03:01.3]} 14... Rc8 {[%clk 0:02:54]} 15. e3 {[%clk 0:02:55.4]} 15... Be7
{[%clk 0:02:51.3]} 16. Bd3 {[%clk 0:02:54.1]} 16... Bd8 {[%clk 0:02:51.4]} 17.
Kf2 {[%clk 0:02:38.1]} 17... g5 {[%clk 0:02:49.4]} 18. Bg3 {[%clk 0:02:37]}
18... g6 {[%clk 0:02:42.3]} 19. h4 {[%clk 0:02:35.7]} 19... gxh4 {[%clk
0:02:41.3]} 20. Rxh4 {[%clk 0:02:33.1]} 20... Rxh4 {[%clk 0:02:39.3]} 21. Bxh4
{[%clk 0:02:33.6]} 21... Nxg4+ {[%clk 0:02:39.7]} 22. fxg4 {[%clk 0:02:33.9]}
22... Bxh4+ {[%clk 0:02:39.9]} 23. Kf3 {[%clk 0:02:30.6]} 23... e5 {[%clk
0:02:34.4]} 24. Bc2 {[%clk 0:02:27.5]} 24... e4+ {[%clk 0:02:33.8]} 25. Kg2
{[%clk 0:02:26.8]} 25... Ke7 {[%clk 0:02:31.9]} 26. Rh1 {[%clk 0:02:26.2]} 26...
Bg5 {[%clk 0:02:32.1]} 27. Kf2 {[%clk 0:02:26.6]} 27... Nf6 {[%clk 0:02:31.7]}
28. Bd1 {[%clk 0:02:25.4]} 28... Rb8 {[%clk 0:02:25.3]} 29. Na4 {[%clk
0:02:19.9]} 29... Nd7 {[%clk 0:02:17.2]} 30. Be2 {[%clk 0:02:18.9]} 30... Ra8
{[%clk 0:02:13.1]} 31. Ra1 {[%clk 0:02:15]} 31... Rh8 {[%clk 0:02:12.5]} 32. Kg2
{[%clk 0:02:14.3]} 32... Bxe3 {[%clk 0:02:12.1]} 0-1

[Event "*** SCC Grand Prix: Titled Tuesday Blitz"]
[Site "Chess.com"]
[Date "2020.06.23"]
[Round "7"]
[White "Savva09022009"]
[Black "olksuna"]
[Result "0-1"]
[WhiteElo "2452"]
[BlackElo "2606"]
[TimeControl "180+1"]
[EndTime "11:13:16 PDT"]
[Termination "olksuna won by resignation"]

1. d4 {[%clk 0:03:00.9]} 1... d6 {[%clk 0:02:59.9]} 2. Nc3 {[%clk 0:03:00.7]}
2... Nd7 {[%clk 0:02:57.7]} 3. Bf4 {[%clk 0:02:58.8]} 3... e5 {[%clk 0:02:57.3]}
4. dxe5 {[%clk 0:02:58.8]} 4... dxe5 {[%clk 0:02:58.2]} 5. Bg3 {[%clk
0:02:59.2]} 5... Bb4 {[%clk 0:02:56.6]} 6. Nf3 {[%clk 0:02:57.3]} 6... Qe7
{[%clk 0:02:55]} 7. a3 {[%clk 0:02:53.2]} 7... Bxc3+ {[%clk 0:02:53.8]} 8. bxc3
{[%clk 0:02:53.8]} 8... Nh6 {[%clk 0:02:54.5]} 9. e4 {[%clk 0:02:52.7]} 9... O-O
{[%clk 0:02:51.8]} 10. Bc4 {[%clk 0:02:50.9]} 10... Rd8 {[%clk 0:02:49]} 11. Bh4
{[%clk 0:02:46.2]} 11... Nf6 {[%clk 0:02:45.4]} 12. Qe2 {[%clk 0:02:39.6]} 12...
Bd7 {[%clk 0:02:16.5]} 13. O-O {[%clk 0:02:36.6]} 13... Bc6 {[%clk 0:02:16]} 14.
Bb5 {[%clk 0:02:31.4]} 14... Rd6 {[%clk 0:02:04.7]} 15. Rad1 {[%clk 0:02:13.6]}
15... Rad8 {[%clk 0:02:02.2]} 16. Nd2 {[%clk 0:01:51.4]} 16... Bxb5 {[%clk
0:01:55.4]} 0-1

[Event "*** SCC Grand Prix: Titled Tuesday Blitz"]
[Site "Chess.com"]
[Date "2020.06.23"]
[Round "7"]
[White "pooh2012"]
[Black "bgfbfbgfbgfgf"]
[Result "1-0"]
[WhiteElo "2495"]
[BlackElo "2605"]
[TimeControl "180+1"]
[EndTime "11:13:19 PDT"]
[Termination "pooh2012 won by resignation"]

1. d4 {[%clk 0:03:00.9]} 1... Nf6 {[%clk 0:02:59.4]} 2. Nc3 {[%clk 0:03:01.1]}
2... d5 {[%clk 0:02:58.5]} 3. Bf4 {[%clk 0:03:01.1]} 3... a6 {[%clk 0:02:47.7]}
4. e3 {[%clk 0:03:00]} 4... c5 {[%clk 0:02:47.2]} 5. Nf3 {[%clk 0:02:51.8]} 5...
e6 {[%clk 0:02:46.6]} 6. a4 {[%clk 0:02:46.1]} 6... Nc6 {[%clk 0:02:46.2]} 7.
Ne5 {[%clk 0:02:40.2]} 7... Qb6 {[%clk 0:02:42.6]} 8. a5 {[%clk 0:02:08.9]} 8...
Nxa5 {[%clk 0:02:36.8]} 9. Na4 {[%clk 0:02:06.9]} 9... Qd8 {[%clk 0:02:22.8]}
10. dxc5 {[%clk 0:02:00.7]} 10... Be7 {[%clk 0:02:20.8]} 11. Nb6 {[%clk
0:01:34.1]} 11... Bxc5 {[%clk 0:02:20.3]} 12. Nxa8 {[%clk 0:01:31]} 12... O-O
{[%clk 0:02:05.1]} 13. Nd3 {[%clk 0:01:30.3]} 13... Be7 {[%clk 0:02:04.8]} 14.
Bc7 {[%clk 0:01:29.4]} 1-0

[Event "*** SCC Grand Prix: Titled Tuesday Blitz"]
[Site "Chess.com"]
[Date "2020.06.23"]
[Round "7"]
[White "colegiodemadrid"]
[Black "QuintilianoR"]
[Result "0-1"]
[WhiteElo "2393"]
[BlackElo "2634"]
[TimeControl "180+1"]
[EndTime "11:13:25 PDT"]
[Termination "QuintilianoR won by resignation"]

1. e4 {[%clk 0:03:00.9]} 1... c5 {[%clk 0:02:59.4]} 2. Nf3 {[%clk 0:03:00.1]}
2... d6 {[%clk 0:02:59.7]} 3. d4 {[%clk 0:02:59.8]} 3... cxd4 {[%clk 0:03:00.6]}
4. Nxd4 {[%clk 0:03:00.6]} 4... Nf6 {[%clk 0:03:00.9]} 5. Nc3 {[%clk 0:03:01.3]}
5... a6 {[%clk 0:03:00.8]} 6. Qd3 {[%clk 0:02:59.6]} 6... Nbd7 {[%clk
0:02:58.4]} 7. Bg5 {[%clk 0:02:59.3]} 7... g6 {[%clk 0:02:53.4]} 8. f4 {[%clk
0:02:58]} 8... Bg7 {[%clk 0:02:52.8]} 9. O-O-O {[%clk 0:02:57]} 9... O-O {[%clk
0:02:47.6]} 10. h4 {[%clk 0:02:56.5]} 10... h6 {[%clk 0:02:38.6]} 11. Be2 {[%clk
0:02:55.8]} 11... Qc7 {[%clk 0:02:18.1]} 12. g4 {[%clk 0:02:39.4]} 12... Nc5
{[%clk 0:02:16.5]} 13. Qf3 {[%clk 0:02:39.4]} 13... Bxg4 {[%clk 0:02:12.3]} 14.
Qg2 {[%clk 0:02:36.8]} 14... Bxe2 {[%clk 0:02:11.3]} 15. Ndxe2 {[%clk
0:02:36.1]} 15... hxg5 {[%clk 0:02:04.8]} 16. hxg5 {[%clk 0:02:37]} 16... Nfxe4
{[%clk 0:01:47.3]} 17. Nxe4 {[%clk 0:02:18.5]} 17... Nxe4 {[%clk 0:01:45.5]} 18.
Qxe4 {[%clk 0:02:19.4]} 18... Rac8 {[%clk 0:01:45]} 19. c3 {[%clk 0:02:18.9]}
19... Qc4 {[%clk 0:01:43.7]} 20. Qxe7 {[%clk 0:02:06]} 20... Rfe8 {[%clk
0:01:42.6]} 0-1